bitfinex-derivatives/quotes_SOLF0:USTF0_20251119
["timestamp","ask_amount","ask_price","bid_price","bid_amount"]
[1763575336211,6.87305265,132.07,132.05,0.05028813]
[1763575339918,6.8215,132.05,132.0,7.00968212]
[1763575340109,109.0061,132.07,132.0,19.16]
[1763575340305,2.91,132.07,132.01,3.08]
[1763575340522,26.89732058,132.12,132.01,3.08]
[1763575340523,2.91,132.1,132.01,3.08]
[1763575341119,2.95945607,132.07,132.04,0.04809068]
[1763575341511,6.8208,132.06,132.04,0.04809068]
[1763575341709,2.91,132.05,132.04,0.04809068]
[1763575342013,6.8208,132.06,132.04,0.04809068]
[1763575342210,9.7308,132.06,132.04,0.04809068]
[1763575342606,2.91,132.06,132.04,0.04809068]
[1763575342812,0.04945607,132.07,132.04,3.12809068]
[1763575343012,2.95945607,132.07,132.04,0.04809068]
[1763575343619,2.91,132.05,132.04,0.04809068]
[1763575343924,2.91,132.05,131.99,7.00968212]
[1763575344117,2.91,132.05,131.99,3.08]
[1763575344920,112.96588906,132.09,132.01,3.20818951]
[1763575344921,0.05279501,132.03,132.01,3.20818951]
[1763575345124,0.05578985,132.03,132.01,10.21139889]
[1763575345323,0.05578985,132.03,132.01,3.20171677]
[1763575345818,0.05578985,132.03,132.01,10.21139889]
[1763575346010,0.05578985,132.03,132.02,3.15]
[1763575346215,2.91,132.09,132.02,10.15968212]
[1763575346414,108.9896,132.09,132.03,3.15]
[1763575346611,2.91,132.07,132.0,10.15968212]
[1763575346820,6.8209,132.06,132.0,3.15]
[1763575347024,6.8209,132.06,132.0,10.15968212]
[1763575347420,0.05508224,132.04,132.02,3.20286466]
[1763575347614,0.05508224,132.04,132.02,0.05286466]
[1763575347615,2.96508224,132.04,132.02,0.05286466]
[1763575348425,9.78698224,132.04,132.02,0.05286466]
[1763575349028,2.91,132.03,132.02,0.05286466]
[1763575349227,6.87698224,132.04,132.02,0.05286466]
[1763575349830,9.78698224,132.04,132.02,0.05286466]
[1763575350325,0.05508224,132.04,131.98,10.15968212]
[1763575350525,0.05508224,132.04,131.98,3.15]
[1763575350722,0.05508224,132.04,131.99,10.15968212]
[1763575350923,0.05508224,132.04,132.02,3.15]
[1763575351221,2.86,132.1,132.03,3.15]
[1763575351529,2.86,132.1,132.04,3.15]
[1763575351916,23.04837162,132.15,132.04,3.15]
[1763575351917,2.86,132.14,132.05,3.15]
[1763575352118,2.86,132.14,132.06,3.15]
[1763575352324,0.04877984,132.11,132.08,3.20266657]
[1763575353832,0.04877984,132.11,132.08,0.05266657]
[1763575354028,2.90877984,132.11,132.08,0.05266657]
[1763575354323,0.04877984,132.11,132.08,3.20266657]
[1763575354518,2.90877984,132.11,132.08,0.05266657]
[1763575355024,2.86,132.1,132.08,0.05266657]
[1763575355523,2.86,132.09,132.08,0.05266657]
[1763575355729,2.90877984,132.11,132.08,0.05266657]
[1763575355936,0.04877984,132.11,132.08,3.20266657]
[1763575357732,0.04877984,132.11,132.1,3.37]
[1763575358029,6.8157,132.16,132.1,3.37]
[1763575358424,6.8162,132.15,132.1,3.37]
[1763575358624,2.86,132.14,132.1,3.37]
[1763575358822,0.05711363,132.13,132.11,0.05766472]
[1763575359133,0.05711363,132.13,132.11,3.42766472]
[1763575360735,0.05711363,132.13,132.11,0.05766472]
[1763575361036,2.91711363,132.13,132.11,0.05766472]
[1763575361336,2.91711363,132.13,132.05,16.27069586]
[1763575361337,2.8,132.09,132.05,10.37968212]
[1763575361521,9.6188,132.1,132.05,3.37]
[1763575361924,6.8193,132.09,132.05,3.37]
[1763575362124,2.8,132.12,132.05,3.37]
[1763575362439,0.05582941,132.1,132.07,0.05418806]
[1763575362624,0.05582941,132.1,132.07,3.42418806]
[1763575367033,2.85582941,132.1,132.07,0.05418806]
[1763575367242,0.05582941,132.1,132.07,0.05418806]
[1763575367542,0.05582941,132.1,132.07,3.42418806]
[1763575369240,2.85582941,132.1,132.07,0.05418806]
[1763575370146,9.67462941,132.1,132.07,0.05418806]
[1763575370344,2.8,132.09,132.07,0.05418806]
[1763575370738,9.6192,132.09,132.07,0.05418806]
[1763575371038,2.8,132.08,132.07,0.05418806]
[1763575372048,6.8205,132.07,132.01,23.11145048]
[1763575372240,6.8205,132.07,132.01,26.48145048]
[1763575372439,6.8205,132.07,132.02,3.37]
[1763575372738,6.8208,132.06,132.02,3.37]
[1763575373143,0.048026,132.05,132.03,3.424443]
[1763575374050,0.048026,132.05,132.03,0.054443]
[1763575374251,0.048026,132.05,132.03,3.424443]
[1763575376257,2.8,132.1,132.04,3.37]
[1763575376455,2.8,132.11,132.04,3.37]
[1763575376748,9.6219,132.04,132.01,7.05145048]
[1763575376936,9.6219,132.04,131.95,106.1851]
[1763575376937,2.8,132.04,131.98,10.42145048]
[1763575377136,2.8,132.03,131.96,23.11145048]
[1763575377335,2.8,132.03,131.98,0.05137009]
[1763575377336,9.6241,132.0,131.98,0.05137009]
[1763575378044,2.8,131.99,131.98,0.05137009]
[1763575378648,0.05784224,132.01,131.98,3.42137009]
[1763575378845,0.05784224,132.01,131.98,10.30775915]
[1763575379050,2.8,132.07,131.99,3.37]
[1763575379254,9.6204,132.07,132.0,3.37]
[1763575379442,2.8,132.07,132.0,3.37]
[1763575380149,0.05175544,132.05,132.02,0.0560897]
[1763575380354,2.85175544,132.05,132.02,0.0560897]
[1763575380653,0.05175544,132.05,132.02,3.4260897]
[1763575381545,2.8,132.11,132.02,3.4260897]
[1763575381746,9.6183,132.11,132.05,3.37]
[1763575382051,2.8,132.11,132.05,3.37]
[1763575382442,0.04871596,132.09,132.05,3.37]
[1763575382644,2.84871596,132.09,132.07,0.05376268]
[1763575383452,2.8,132.08,132.07,0.05376268]
[1763575383756,2.75,132.03,131.98,7.05145048]
[1763575383958,2.75,132.0,131.94,7.05145048]
[1763575384257,106.1662,131.98,131.92,3.37]
[1763575384457,2.75,131.96,131.9,7.05145048]
[1763575384654,0.04878864,131.94,131.92,0.04891184]
[1763575385254,0.04878864,131.94,131.92,3.41891184]
[1763575385954,2.75,131.99,131.92,3.41891184]
[1763575386159,2.75,132.02,131.92,3.41891184]
[1763575386354,6.8234,132.01,131.93,6.8272]
[1763575386560,2.75,132.02,131.94,3.37]
[1763575386944,0.05125526,131.99,131.97,0.04822372]
[1763575387645,0.05125526,131.99,131.97,3.41822372]
[1763575388254,9.5715,132.05,131.97,3.41822372]
[1763575388559,2.75,132.05,131.97,3.37]
[1763575388866,2.75,132.08,131.99,10.13638906]
[1763575389047,2.75,132.12,132.03,3.25]
[1763575389254,0.04994853,132.09,132.06,0.04853708]
[1763575389754,0.04994853,132.09,132.06,3.29853708]
[1763575390460,131.72048906,132.19,132.07,3.25]
[1763575390656,2.75,132.19,132.1,3.25]
[1763575390955,2.75,132.19,132.1,10.0684]
[1763575391157,2.75,132.19,132.1,16.95478906]
[1763575391356,0.04913344,132.16,132.14,3.25]
[1763575391657,0.04913344,132.16,132.13,0.05343691]
[1763575391658,2.75,132.15,132.13,0.05343691]
[1763575392052,2.75,132.14,132.13,0.05343691]
[1763575392259,2.75,132.14,132.06,26.21638906]
[1763575392560,2.75,132.12,132.04,3.25]
[1763575393348,0.05212355,132.09,132.07,0.05748379]
[1763575393748,0.05212355,132.09,132.07,3.30748379]
[1763575393952,0.05212355,132.09,132.07,0.05748379]
[1763575394459,2.80212355,132.09,132.07,0.05748379]
[1763575394652,0.05212355,132.09,132.07,0.05748379]
[1763575396066,2.80212355,132.09,132.07,0.05748379]
[1763575397164,2.80212355,132.09,131.99,10.13638906]
[1763575397165,108.8345,132.08,131.99,10.13638906]
[1763575397356,2.75,132.07,131.99,26.21638906]
[1763575398367,0.052107,132.04,132.02,0.05782817]
[1763575399161,0.052107,132.04,132.02,3.30782817]
[1763575399471,0.052107,132.04,132.02,0.05782817]
[1763575399961,0.052107,132.04,132.02,3.30782817]
[1763575401266,9.5679,132.12,132.02,3.30782817]
[1763575401456,108.7661,132.17,132.05,14.04009168]
[1763575401662,2.75,132.16,132.07,3.25]
[1763575402059,2.75,132.19,132.09,3.25]
[1763575402464,0.05514741,132.15,132.13,0.05419298]
[1763575403162,2.75,132.14,132.05,3.25]
[1763575403365,2.75,132.14,132.05,19.33]
[1763575403565,9.5674,132.13,132.05,26.1509]
[1763575404057,2.75,132.12,132.05,3.25]
[1763575404263,2.80022577,132.1,132.07,0.05828752]
[1763575405669,2.75,132.08,132.02,3.25]
[1763575405868,2.75,132.08,131.99,3.23]
[1763575406071,2.75,132.08,131.99,19.31]
[1763575406255,106.0711,132.1,131.99,3.23]
[1763575406256,2.75,132.06,131.99,3.23]
[1763575406568,2.75,132.09,132.0,3.23]
[1763575406769,0.05129927,132.06,132.03,0.04927584]
[1763575408159,2.80129927,132.06,132.03,0.04927584]
[1763575408975,9.62229927,132.06,132.03,0.04927584]
[1763575409469,2.75,132.05,132.03,0.04927584]
[1763575409670,0.05129927,132.06,132.03,0.04927584]
[1763575409866,0.05129927,132.06,132.03,3.27927584]
[1763575410368,2.75,132.14,132.05,3.23]
[1763575410870,2.8,132.13,132.05,3.23]
[1763575411274,0.05055513,132.1,132.08,0.0531237]
[1763575412169,2.85055513,132.1,132.08,0.0531237]
[1763575412576,0.05055513,132.1,132.08,0.0531237]
[1763575414473,0.05055513,132.1,132.08,3.2831237]
[1763575414873,2.85055513,132.1,132.08,0.0531237]
[1763575415676,9.66935513,132.1,132.08,0.0531237]
[1763575415874,2.8,132.09,132.08,0.0531237]
[1763575416064,9.62,132.08,132.03,3.23]
[1763575416268,2.8,132.08,132.03,3.23]
[1763575416571,6.8178,132.12,132.05,3.23]
[1763575416977,0.05384431,132.1,132.07,3.28376035]
[1763575417672,2.8,132.18,132.09,3.23]
[1763575418664,0.0543945,132.15,132.12,0.0480148]
[1763575418872,0.0543945,132.15,132.12,3.2980148]
[1763575420770,0.0543945,132.15,132.12,0.0480148]
[1763575421074,2.8,132.12,132.04,10.27708558]
[1763575421281,2.8,132.12,132.04,3.25]
[1763575421579,6.8187,132.1,132.04,3.25]
[1763575421776,108.8631,132.11,132.04,3.25]
[1763575421971,6.87258457,132.09,132.06,0.0503028]
[1763575422174,0.05318457,132.09,132.06,0.0503028]
[1763575422376,2.85318457,132.09,132.06,0.0503028]
[1763575422774,0.05318457,132.09,132.06,0.0503028]
[1763575423076,9.67248457,132.09,132.06,0.0503028]
[1763575423278,2.85318457,132.09,132.06,0.0503028]
[1763575425070,0.05318457,132.09,132.06,0.0503028]
[1763575426069,2.8,132.08,132.06,0.0503028]
[1763575426786,2.8,132.07,132.01,3.25]
[1763575427076,108.8714,132.1,132.01,3.25]
[1763575427270,106.0559,132.12,132.03,3.25]
[1763575427467,2.8,132.11,132.03,3.25]
[1763575427672,108.8819,132.09,132.0,3.25]
[1763575427868,2.8,132.05,132.03,0.05330892]
[1763575428083,2.85764698,132.05,132.03,0.05330892]
[1763575428278,0.05764698,132.05,132.03,0.05330892]
[1763575429184,0.05764698,132.05,132.03,3.30330892]
[1763575430477,0.05764698,132.05,132.03,0.05330892]
[1763575431575,0.05764698,132.05,132.03,3.30330892]
[1763575433388,2.8,132.11,132.03,3.30330892]
[1763575433686,2.8,132.11,132.03,10.30043561]
[1763575433887,6.8187,132.1,132.04,6.8216]
[1763575434274,0.05063121,132.08,132.06,0.05067242]
[1763575435288,2.85063121,132.08,132.06,0.05067242]
[1763575436180,0.05063121,132.08,132.06,3.30067242]
[1763575436386,0.05063121,132.08,132.06,0.05067242]
[1763575439194,0.05063121,132.08,132.06,3.30067242]
[1763575440894,0.05063121,132.08,132.06,0.05067242]
[1763575441090,2.85063121,132.08,132.06,0.05067242]
[1763575441593,2.75,132.07,131.99,7.05043561]
[1763575441793,2.75,132.07,131.98,10.30043561]
[1763575442394,2.75,132.07,131.99,10.0742]
[1763575442690,0.04908404,132.04,132.01,3.30125637]
[1763575442994,0.04908404,132.04,132.02,3.25]
[1763575442995,0.0485842,132.04,132.02,3.25]
[1763575443789,0.0485842,132.04,132.01,0.05395282]
[1763575444191,0.0485842,132.04,132.01,3.30395282]
[1763575444382,0.0485842,132.04,132.01,0.05395282]
[1763575444586,0.0485842,132.04,132.01,3.30395282]
[1763575444787,2.7985842,132.04,132.01,0.05395282]
[1763575445298,2.75,132.03,132.01,0.05395282]
[1763575445689,9.5724,132.03,132.01,0.05395282]
[1763575445887,108.8858,132.02,131.95,7.05043561]
[1763575446087,2.75,131.97,131.93,7.05043561]
[1763575446398,2.75,131.97,131.91,10.30043561]
[1763575446694,108.8937,132.01,131.91,3.25]
[1763575446895,0.05650658,131.97,131.95,0.05560234]
[1763575447297,0.05650658,131.97,131.95,3.30560234]
[1763575447496,2.80650658,131.97,131.95,0.05560234]
[1763575447799,9.63200658,131.97,131.95,0.05560234]
[1763575448100,2.80650658,131.97,131.95,0.05560234]
[1763575448393,0.05650658,131.97,131.95,3.21560234]
[1763575450597,0.05650658,131.97,131.95,0.05560234]
[1763575451004,0.05650658,131.97,131.95,3.21560234]
[1763575453695,0.05650658,131.97,131.95,0.05560234]
[1763575453899,0.05650658,131.97,131.95,3.21560234]
[1763575454499,2.75,132.04,131.95,3.21560234]
[1763575454803,2.75,132.04,131.95,3.16]
[1763575455398,2.75,132.02,131.95,3.16]
[1763575455594,0.0540619,132.0,131.97,0.05631632]
[1763575455795,2.8040619,132.0,131.97,0.05631632]
[1763575455995,0.0540619,132.0,131.97,0.05631632]
[1763575457100,2.8040619,132.0,131.97,0.05631632]
[1763575457595,2.75,131.98,131.97,0.05631632]
[1763575458502,2.75,131.99,131.97,0.05631632]
[1763575459900,0.0540619,132.0,131.97,3.21631632]
[1763575460401,0.0540619,132.0,131.97,0.05631632]
[1763575460598,0.0540619,132.0,131.97,3.21631632]
[1763575460794,2.8040619,132.0,131.97,0.05631632]
[1763575461797,9.6279619,132.0,131.97,0.05631632]
[1763575462100,2.8040619,132.0,131.97,0.05631632]
[1763575463005,2.75,131.98,131.97,0.05631632]
[1763575464696,6.8244,131.99,131.97,0.05631632]
[1763575465203,2.73,131.98,131.97,0.05631632]
[1763575465401,2.73,131.97,131.91,3.34]
[1763575466301,0.05293241,131.95,131.93,0.049862]
[1763575466498,0.05293241,131.95,131.93,3.389862]
[1763575466700,2.73,132.01,131.93,3.389862]
[1763575466894,2.73,132.01,131.91,3.34]
[1763575466895,2.73,132.0,131.91,3.34]
[1763575467099,6.8254,131.97,131.92,3.34]
[1763575467706,0.0567512,131.96,131.93,3.39133253]
[1763575469304,6.8826512,131.96,131.93,3.39133253]
[1763575469504,9.6126512,131.96,131.93,0.05133253]
[1763575469698,0.0567512,131.96,131.93,3.39133253]
[1763575469906,2.73,132.03,131.95,3.34]
[1763575470204,2.79,132.06,131.98,3.34]
[1763575470606,2.79,132.05,131.98,3.34]
[1763575470910,2.84410389,132.03,132.0,0.05548317]
[1763575471306,0.05410389,132.03,132.0,3.39548317]
[1763575472403,0.05410389,132.03,132.01,3.34]
[1763575475210,2.79,132.1,132.01,3.34]
[1763575475396,2.79,132.1,132.02,10.23553476]
[1763575475600,2.79,132.1,132.03,3.34]
[1763575476209,2.84492253,132.08,132.05,0.05177016]
[1763575476712,0.05492253,132.08,132.05,3.39177016]
[1763575477006,2.79,132.15,132.08,3.34]
[1763575478009,2.91780652,132.13,132.1,0.04826844]
[1763575478213,2.91780652,132.13,132.1,0.05166835]
[1763575478214,2.91070882,132.13,132.1,0.05166835]
[1763575478613,0.05070882,132.13,132.1,3.32166835]
[1763575478802,0.05070882,132.13,132.11,3.27]
[1763575479003,2.86,132.2,132.11,3.27]
[1763575479307,9.6742,132.19,132.11,3.27]
[1763575479513,2.86,132.19,132.11,3.27]
[1763575479811,2.86,132.19,132.12,3.27]
[1763575480004,2.91,132.26,132.17,3.27]
[1763575480210,2.91,132.26,132.2,3.27]
[1763575480414,13.55367924,132.31,132.2,3.27]
[1763575480415,4.22638675,132.3,132.2,3.27]
[1763575480605,2.91,132.29,132.2,3.27]
[1763575481006,2.91,132.28,132.2,3.27]
[1763575481208,0.0529997,132.25,132.23,0.05757213]
[1763575481608,108.9136997,132.25,132.23,0.05757213]
[1763575481814,2.91,132.24,132.18,16.1]
[1763575482015,108.8927,132.21,132.13,26.42043561]
[1763575482216,108.8927,132.21,132.13,19.37]
[1763575482217,2.91,132.2,132.13,19.37]
[1763575482416,115.7206,132.19,132.13,3.27]
[1763575482720,0.04999148,132.17,132.15,0.05482121]
[1763575483519,0.04999148,132.17,132.15,3.32482121]
[1763575483712,108.8696,132.24,132.15,3.32482121]
[1763575483914,2.91,132.23,132.15,3.27]
[1763575484526,2.91,132.26,132.16,3.27]
[1763575484817,0.05745232,132.22,132.2,0.05144248]
[1763575485009,0.05745232,132.22,132.2,3.32144248]
[1763575485010,0.04984867,132.22,132.2,3.32144248]
[1763575485211,0.04984867,132.22,132.2,0.05144248]
[1763575486613,2.95984867,132.22,132.2,0.05144248]
[1763575486924,108.93364867,132.22,132.2,0.00144248]
[1763575487131,2.86,132.18,132.09,3.27]
[1763575487421,2.86,132.15,132.08,12.48]
[1763575487623,2.86,132.12,132.05,3.27]
[1763575487921,2.86,132.11,132.02,3.27]
[1763575488218,0.05287755,132.08,132.05,0.04964658]
[1763575488715,0.05287755,132.08,132.05,3.31964658]
[1763575488922,0.05287755,132.08,132.05,0.04964658]
[1763575489123,0.05287755,132.08,132.05,3.31964658]
[1763575490818,0.05287755,132.08,132.05,0.04964658]
[1763575492117,2.86,132.07,131.98,3.27]
[1763575492316,108.982,132.04,131.94,10.32043561]
[1763575492520,109.0013,132.01,131.94,3.27]
[1763575492717,6.8242,132.0,131.94,3.27]
[1763575493226,0.0579793,131.98,131.96,0.04867225]
[1763575493617,0.0579793,131.98,131.96,3.31867225]
[1763575493820,2.86,132.05,131.97,3.27]
[1763575494324,2.86,132.04,131.94,10.16553476]
[1763575494728,0.05410598,132.0,131.98,0.05749124]
[1763575494933,0.05410598,132.0,131.98,3.32749124]
[1763575495120,2.86,132.07,131.98,3.32749124]
[1763575495326,9.6805,132.07,131.98,3.27]
[1763575495728,9.6805,132.07,131.98,10.0944]
[1763575496029,0.04838987,132.04,132.01,0.05289859]
[1763575496816,0.04838987,132.04,132.01,3.32289859]
[1763575498231,2.86,132.11,132.03,6.89553476]
[1763575498623,9.6784,132.11,132.03,6.89553476]
[1763575498821,2.86,132.09,132.01,3.27]
[1763575499038,2.86,132.09,132.01,19.39]
[1763575499232,0.04094545,132.06,132.04,0.05062552]
[1763575500125,0.04094545,132.06,132.04,3.32062552]
[1763575500430,0.04094545,132.06,131.95,3.27]
[1763575500431,2.81,132.04,131.95,3.27]
[1763575500729,2.81,132.03,131.95,3.27]
[1763575501028,2.81,132.06,131.95,3.27]
[1763575501434,9.6335,132.01,131.99,0.05255217]
[1763575501628,9.6335,132.01,131.93,6.89553476]
[1763575501629,2.81,132.0,131.93,16.14]
[1763575501832,2.81,132.0,131.92,16.14]
[1763575502033,2.81,132.0,131.92,19.41]
[1763575502229,2.81,132.04,131.94,3.27]
[1763575502443,2.81,132.08,131.97,3.27]
[1763575502628,0.05701512,132.04,132.01,3.32686621]
[1763575502828,0.05701512,132.04,132.02,3.27]
[1763575503326,0.05701512,132.04,132.01,0.05686621]
[1763575503527,0.05701512,132.04,132.01,3.32686621]
[1763575503933,0.05701512,132.04,132.01,19.46686621]
[1763575504335,0.05701512,132.04,131.93,3.27]
[1763575504534,2.81,132.02,131.93,10.16553476]
[1763575504833,6.825,131.98,131.92,16.14]
[1763575505032,6.825,131.98,131.9,3.27]
[1763575505438,0.04904546,131.95,131.93,0.05424412]
[1763575505825,0.04904546,131.95,131.93,3.32424412]
[1763575507228,19.0,132.04,131.93,3.32424412]
[1763575507434,6.823,132.02,131.93,3.27]
[1763575508343,0.05416078,131.99,131.96,0.05664657]
[1763575509238,2.91416078,131.99,131.96,0.05664657]
[1763575510040,0.05416078,131.99,131.96,0.05664657]
[1763575511240,0.05416078,131.99,131.96,3.33664657]
[1763575511642,2.86,132.07,131.98,3.28]
[1763575511946,2.86,132.03,131.95,16.14]
[1763575512243,2.86,132.03,131.95,19.42]
[1763575512442,2.86,132.03,131.95,3.28]
[1763575512647,6.8234,132.01,131.95,19.44]
[1763575512844,2.86,132.03,131.95,19.44]
[1763575512845,0.05273677,131.99,131.97,3.33491585]
[1763575513050,0.05273677,131.99,131.97,0.05491585]
[1763575513640,0.05273677,131.99,131.97,3.33491585]
[1763575514147,0.05273677,131.99,131.97,19.49491585]
[1763575514549,0.05273677,131.99,131.98,3.28]
[1763575516055,2.86,132.06,131.98,3.28]
[1763575516253,2.86,132.06,131.99,6.89553476]
[1763575516646,106.0801,132.09,131.98,3.28]
[1763575516647,2.86,132.05,131.98,3.28]
[1763575517149,0.04504634,132.03,132.0,0.05201175]
[1763575517356,2.90504634,132.03,132.0,0.05201175]
[1763575518157,2.86,132.01,132.0,0.05201175]
[1763575518557,2.86,132.01,131.94,3.28]
[1763575518558,6.8242,132.0,131.94,3.28]
[1763575518757,9.6842,132.0,131.94,19.42]
[1763575518959,2.86,132.0,131.94,19.42]
[1763575519363,2.86,132.0,131.94,26.2468]
[1763575519765,0.05296462,131.98,131.96,0.05349635]
[1763575520763,2.91296462,131.98,131.96,0.05349635]
[1763575521467,0.05296462,131.98,131.96,0.05349635]
[1763575523267,2.86,132.06,131.99,3.28]
[1763575524054,9.6808,132.06,131.99,3.28]
[1763575524259,2.86,132.05,131.99,16.14]
[1763575524563,2.86,132.03,132.01,0.05054504]
[1763575525159,2.90409347,132.04,132.01,0.05054504]
[1763575526466,0.04409347,132.04,132.01,0.05054504]
[1763575526773,0.04409347,132.04,132.02,3.16]
[1763575526964,2.86,132.1,132.03,16.14]
[1763575527164,2.86,132.1,132.04,3.16]
[1763575527365,19.0,132.15,132.04,3.16]
[1763575527566,2.86,132.15,132.07,3.16]
[1763575528068,2.86,132.15,132.1,0.05547893]
[1763575528256,108.9071,132.13,132.1,0.05547893]
[1763575528458,2.86,132.11,132.1,0.05547893]
[1763575528655,2.86,132.11,132.03,3.16]
[1763575528864,6.8194,132.09,132.03,3.16]
[1763575529266,2.86,132.1,132.03,3.16]
[1763575529668,0.04806812,132.08,132.05,0.05697215]
[1763575530673,2.90806812,132.08,132.05,0.05697215]
[1763575531375,2.86,132.06,132.05,0.05697215]
[1763575531771,4.38,132.06,131.99,3.16]
[1763575531980,2.86,132.06,131.99,3.16]
[1763575532380,2.86,132.06,131.98,3.16]
[1763575532568,9.6808,132.06,131.98,9.9846]
[1763575532774,0.05203657,132.03,132.01,0.05442452]
[1763575533976,2.91203657,132.03,132.01,0.05442452]
[1763575534180,0.05203657,132.03,132.01,0.05442452]
[1763575536381,0.05203657,132.03,132.01,3.21442452]
[1763575536772,0.05203657,132.03,132.01,0.05442452]
[1763575537388,0.05203657,132.03,132.01,3.21442452]
[1763575537777,0.05203657,132.03,132.01,0.05442452]
[1763575538477,0.05203657,132.03,132.01,3.18442452]
[1763575538877,2.86,132.1,132.02,3.13]
[1763575539584,2.86,132.1,132.0,106.1458]
[1763575539585,2.86,132.09,132.0,6.99613702]
[1763575539779,2.86,132.08,131.98,26.24613702]
[1763575539980,0.05468356,132.04,132.02,0.05331928]
[1763575540372,2.91468356,132.04,132.02,0.05331928]
[1763575540674,2.86,132.02,131.94,6.99613702]
[1763575540877,2.86,132.0,131.93,6.99613702]
[1763575541080,2.86,131.99,131.92,13.79628702]
[1763575541283,2.86,131.99,131.92,6.80015]
[1763575541482,2.86,131.96,131.92,3.67015]
[1763575541674,2.86,131.96,131.94,0.05239692]
[1763575542281,2.90847451,131.97,131.94,0.05239692]
[1763575544388,109.08507451,131.97,131.94,0.05239692]
[1763575544683,2.81,131.94,131.92,3.67015]
[1763575545390,2.81,131.93,131.92,3.67015]
[1763575545692,2.81,131.93,131.92,3.7238939]
[1763575546385,0.05781718,131.94,131.92,3.7238939]
[1763575547185,2.86781718,131.94,131.92,3.7238939]
[1763575547788,0.05781718,131.94,131.92,3.7238939]
[1763575549091,0.05781718,131.94,131.92,6.8538939]
[1763575549485,0.05781718,131.94,131.92,3.7238939]
[1763575551790,0.05781718,131.94,131.92,6.8538939]
[1763575553185,0.05781718,131.94,131.93,3.13]
[1763575553381,2.81,132.01,131.93,3.13]
[1763575553585,6.8239,132.0,131.93,3.13]
[1763575553789,9.6339,132.0,131.93,3.13]
[1763575554392,0.05182228,131.98,131.95,3.18736438]
[1763575555995,0.05182228,131.98,131.95,0.05736438]
[1763575556396,0.05182228,131.98,131.95,3.18736438]
[1763575557489,0.05182228,131.98,131.95,0.05736438]
[1763575558197,0.05182228,131.98,131.95,3.18736438]
[1763575558692,0.05182228,131.98,131.95,0.05736438]
[1763575559498,0.05182228,131.98,131.95,3.18736438]
[1763575560288,0.05182228,131.98,131.95,19.30736438]
[1763575560488,0.05182228,131.98,131.96,3.13]
[1763575561700,0.05182228,131.98,131.95,0.05736438]
[1763575562097,2.86182228,131.98,131.95,0.05736438]
[1763575562301,0.05182228,131.98,131.95,0.05736438]
[1763575562805,0.05182228,131.98,131.96,3.13]
[1763575563200,2.81,132.07,131.98,3.13]
[1763575563407,2.81,132.07,132.0,3.13]
[1763575563595,6.8208,132.06,132.0,3.13]
[1763575563799,2.81,132.07,132.0,3.13]
[1763575564102,0.0494953,132.05,132.02,0.05399728]
[1763575564296,6.8707953,132.05,132.02,0.05399728]
[1763575564702,9.6807953,132.05,132.02,0.05399728]
[1763575564905,2.81,132.03,132.02,0.05399728]
[1763575565300,0.0494953,132.05,132.02,3.18399728]
[1763575565503,2.81,132.11,132.02,3.18399728]
[1763575565700,2.81,132.14,132.04,3.13]
[1763575566006,2.81,132.14,132.03,16.12]
[1763575566207,2.81,132.13,132.02,19.25]
[1763575566405,6.8183,132.11,132.02,19.25]
[1763575566706,9.6283,132.11,132.05,0.04972407]
[1763575567104,2.81,132.11,132.05,0.04972407]
[1763575567413,2.81,132.09,132.05,0.04972407]
[1763575567711,2.81,132.09,132.06,0.05490808]
[1763575567901,2.81,132.09,132.06,0.05159871]
[1763575568096,2.81,132.14,132.06,3.40159871]
[1763575568306,2.81,132.14,132.09,0.04817244]
[1763575568899,2.81,132.17,132.09,3.39817244]
[1763575569205,2.81,132.17,132.12,0.05556162]
[1763575570307,6.8143,132.19,132.12,3.40556162]